bitfinex/quotes_SOLUSD_20220302
["timestamp","ask_amount","ask_price","bid_price","bid_amount"]
[1646230448836,0.47595365,101.04,100.97,24.4923]
[1646230449035,38.53385739,101.05,100.97,24.4923]
[1646230449449,38.53385739,101.05,100.98,47.03654549]
[1646230449450,6.0,101.04,100.98,47.03654549]
[1646230449850,0.25451928,101.03,100.95,3.96]
[1646230450051,0.25451928,101.03,100.93,3.96]
[1646230450452,63.26460602,101.04,100.93,3.96]
[1646230450851,0.25451928,101.03,100.94,43.40813536]
[1646230451052,3.96,101.02,100.94,43.40813536]
[1646230451251,14.8633,101.01,100.94,43.40813536]
[1646230452254,14.8576,101.03,100.94,102.79813536]
[1646230452455,22.5408,101.05,100.95,3.96]
[1646230452655,3.96,101.06,100.96,46.52881147]
[1646230452855,3.96,101.06,100.96,46.77881147]
[1646230453056,6.0,101.05,100.96,46.77881147]
[1646230453757,3.96,101.07,100.96,46.77881147]
[1646230454059,20.8531,101.06,100.96,228.52550162]
[1646230454256,3.96,101.05,100.96,134.42550162]
[1646230455058,3.96,101.05,100.96,88.20631147]
[1646230455258,3.96,101.05,100.97,6.0]
[1646230455558,3.96,101.05,100.98,56.24181741]
[1646230455559,2.21080602,101.05,100.98,56.24181741]
[1646230455757,11.54,101.04,100.98,56.24181741]
[1646230455961,62.71677351,101.04,100.98,56.24181741]
[1646230456160,24.8444746,101.03,100.94,3.96]
[1646230456359,36.3844746,101.03,100.94,3.96]
[1646230456857,51.2466746,101.03,100.92,47.0376]
[1646230457063,26.4022,101.03,100.93,56.51800642]
[1646230457458,26.4022,101.03,100.94,3.961]
[1646230457659,26.4022,101.03,100.95,57.33314263]
[1646230459766,14.8548,101.05,100.95,57.58314263]
[1646230459961,6.0,101.04,100.95,65.58814263]
[1646230460360,6.0,101.04,100.95,222.78814263]
[1646230460361,9.96,101.04,100.95,222.78814263]
[1646230460562,9.96,101.04,100.95,224.6121011]
[1646230460761,14.8519,101.07,100.98,208.06]
[1646230460964,14.8519,101.07,100.98,275.189]
[1646230461162,45.7552,101.1,100.99,49.69918908]
[1646230461363,45.7552,101.1,100.99,207.14918908]
[1646230461563,45.7552,101.1,101.0,2.54904003]
[1646230461763,45.7552,101.1,101.0,2.79904003]
[1646230461963,45.7552,101.1,101.0,27.74044003]
[1646230462162,45.7552,101.1,101.01,52.1962643]
[1646230462463,45.93267325,101.12,101.01,62.57630433]
[1646230462464,60.77987325,101.12,101.01,62.57630433]
[1646230462865,51.2316746,101.12,101.01,62.57630433]
[1646230463467,26.3872,101.12,101.01,62.57630433]
[1646230463865,14.8472,101.12,101.01,62.57630433]
[1646230464065,14.8472,101.12,101.02,2.54904003]
[1646230464266,14.8472,101.12,101.02,2.79904003]
[1646230464666,14.8472,101.12,101.03,2.54904003]
[1646230464968,14.8472,101.12,101.04,45.42981714]
[1646230466768,14.8472,101.12,101.05,3.956]
[1646230466966,25.19588951,101.12,101.06,47.97957667]
[1646230467366,17.05800602,101.12,101.06,47.97957667]
[1646230467567,14.8472,101.12,101.06,53.99157667]
[1646230467767,14.8412,101.14,101.06,53.74157667]
[1646230468167,14.8412,101.14,101.07,3.956]
[1646230468368,14.8412,101.14,101.08,52.9262964]
[1646230470269,24.2507,101.16,101.08,52.9262964]
[1646230470471,14.8387,101.16,101.08,52.9262964]
[1646230472173,14.8387,101.16,101.08,53.1762964]
[1646230472773,11.33471479,101.18,101.08,55.72533643]
[1646230472774,14.8358,101.18,101.08,55.72533643]
[1646230472971,14.8358,101.18,101.08,212.92533643]
[1646230473172,14.8358,101.18,101.09,6.0]
[1646230473371,14.8358,101.18,101.09,72.023]
[1646230473573,14.8358,101.18,101.1,58.1350233]
[1646230473771,14.8358,101.18,101.1,58.3850233]
[1646230475173,14.8358,101.18,101.1,58.1350233]
[1646230476675,14.8358,101.18,101.1,58.3850233]
[1646230476975,14.8358,101.18,101.1,67.3390233]
[1646230477276,14.8358,101.18,101.1,67.5890233]
[1646230477475,14.8358,101.18,101.1,67.3390233]
[1646230478476,14.8358,101.18,101.1,69.88806333]
[1646230479175,14.8358,101.18,101.1,70.13806333]
[1646230479675,14.8358,101.18,101.1,69.88806333]
[1646230479876,14.8327,101.2,101.1,69.88806333]
[1646230480077,14.8327,101.2,101.11,6.0]
[1646230480676,14.8327,101.2,101.12,45.2016952]
[1646230482285,24.01984063,101.2,101.12,45.2016952]
[1646230484306,14.8327,101.2,101.12,45.2016952]
[1646230484906,14.8327,101.2,101.12,52.6706952]
[1646230485406,14.8327,101.2,101.12,52.9206952]
[1646230487307,58.40018662,101.25,101.12,212.66973523]
[1646230487508,107.82728662,101.25,101.13,211.5632]
[1646230487707,97.5036,101.25,101.13,223.3532]
[1646230487908,97.5036,101.25,101.14,2.54904003]
[1646230488109,97.5036,101.25,101.15,48.53465291]
[1646230488409,97.5036,101.25,101.15,58.03065291]
[1646230490110,14.827,101.24,101.15,72.85625291]
[1646230490511,49.4178,101.27,101.15,134.54529294]
[1646230490710,49.4178,101.27,101.16,88.289]
[1646230490909,49.4178,101.27,101.16,88.539]
[1646230491112,47.8204,101.28,101.16,91.08804003]
[1646230491310,14.8238,101.26,101.17,96.755]
[1646230491510,47.8204,101.28,101.18,207.90235078]
[1646230491713,47.8204,101.28,101.18,118.89539081]
[1646230491911,10.32013,101.3,101.18,118.89539081]
[1646230492113,47.98526857,101.32,101.19,85.28564003]
[1646230492312,46.6893,101.32,101.2,65.14]
[1646230492513,14.8158,101.31,101.21,157.2]
[1646230492713,14.8158,101.31,101.21,213.53024003]
[1646230492914,14.8158,101.31,101.21,127.01024003]
[1646230493111,14.8158,101.31,101.22,45.7180925]
[1646230493312,14.8158,101.31,101.22,45.9680925]
[1646230493513,46.6893,101.32,101.22,220.53143253]
[1646230493912,46.6893,101.32,101.22,122.47143253]
[1646230494815,46.6893,101.32,101.22,220.53143253]
[1646230495017,14.8156,101.31,101.22,48.51713253]
[1646230495414,8.77374117,101.32,101.24,51.81610086]
[1646230496013,32.37128844,101.32,101.24,51.81610086]
[1646230496413,14.8186,101.29,101.24,51.81610086]
[1646230501019,57.3301321,101.32,101.24,51.81610086]
[1646230501020,14.8166,101.31,101.24,51.81610086]
[1646230501421,14.8166,101.31,101.24,52.06610086]
[1646230505928,0.31409204,101.3,101.24,51.81610086]
[1646230506128,1.87097594,101.32,101.24,51.81610086]
[1646230506728,193.00923209,101.33,101.24,51.81610086]
[1646230506729,93.56760554,101.33,101.24,51.81610086]
[1646230506928,73.1997,101.33,101.24,51.81610086]
[1646230507130,73.1997,101.33,101.24,52.06610086]
[1646230507327,23.8088,101.33,101.24,52.06610086]
[1646230507529,89.26733887,101.35,101.24,209.26610086]
[1646230507730,24.07566857,101.38,101.24,223.35514089]
[1646230507931,47.0319,101.38,101.26,157.2]
[1646230508130,47.0319,101.38,101.27,180.0797]
[1646230508430,47.0319,101.38,101.27,209.22614003]
[1646230508631,23.7765,101.41,101.28,165.74904003]
[1646230508830,70.9151,101.41,101.3,60.54533574]
[1646230509030,70.9151,101.41,101.3,226.81933574]
[1646230509232,47.1386,101.41,101.31,2.54904003]
[1646230509532,14.7992,101.43,101.32,163.2]
[1646230509733,14.7992,101.43,101.32,174.74]
[1646230509933,14.7992,101.43,101.33,2.54904003]
[1646230510131,14.7992,101.43,101.34,57.51109211]
[1646230510332,14.7992,101.43,101.34,51.76109211]
[1646230510735,14.7992,101.43,101.34,54.31013214]
[1646230511534,1.24959692,101.42,101.34,54.31013214]
[1646230511734,1.24959692,101.42,101.34,51.51109211]
[1646230511934,0.30548574,101.41,101.34,51.51109211]
[1646230512137,20.36790554,101.43,101.34,51.51109211]
[1646230512338,0.30548574,101.42,101.34,51.51109211]
[1646230512535,46.7941,101.44,101.34,51.51109211]
[1646230513136,55.96967288,101.44,101.34,51.76109211]
[1646230513335,46.7941,101.44,101.34,51.76109211]
[1646230513535,14.7991,101.43,101.34,51.76109211]
[1646230513737,96.1296,101.44,101.34,51.76109211]
[1646230513936,96.1296,101.44,101.34,74.67549211]
[1646230514840,96.48679979,101.44,101.34,74.67549211]
[1646230515038,49.3422,101.43,101.34,74.42549211]
[1646230515236,8.51142566,101.42,101.34,74.42549211]
[1646230515436,0.29236071,101.41,101.34,74.42549211]
[1646230515636,8.51142566,101.42,101.34,74.42549211]
[1646230515837,8.51142566,101.42,101.34,51.51109211]
[1646230516036,8.51142566,101.42,101.32,24.4246]
[1646230516037,49.3565,101.4,101.3,24.7115]
[1646230516236,0.48068049,101.39,101.3,24.7115]
[1646230516436,2.7157098,101.39,101.3,24.7115]
[1646230516637,2.23502931,101.39,101.3,24.7115]
[1646230516957,2.56020635,101.38,101.31,52.83150184]
[1646230517159,14.8084,101.36,101.31,52.83150184]
[1646230518560,23.31982566,101.36,101.27,38.2785]
[1646230518767,0.37240809,101.35,101.27,23.4715]
[1646230518959,8.51142566,101.36,101.27,23.4715]
[1646230519760,57.88782566,101.36,101.28,56.63707536]
[1646230520360,14.813,101.33,101.28,56.63707536]
[1646230523965,14.8142,101.32,101.28,56.63707536]
[1646230524171,0.40286993,101.32,101.24,23.9376]
[1646230524469,0.33170934,101.31,101.21,23.8372]
[1646230524666,0.40286993,101.32,101.22,6.0]
[1646230525267,0.40286993,101.32,101.23,49.74908866]
[1646230525566,8.48819592,101.29,101.23,49.74908866]
[1646230525965,8.48819592,101.29,101.2,25.92724003]
[1646230526167,15.48719592,101.29,101.2,25.92724003]
[1646230526365,15.48719592,101.29,101.2,2.54904003]
[1646230526568,15.48719592,101.29,101.14,125.39609434]
[1646230526569,0.34527562,101.27,101.14,125.39609434]
[1646230526769,11.54,101.26,101.14,134.36899434]
[1646230527066,8.17086755,101.25,101.15,58.62403584]
[1646230527266,7.82559193,101.25,101.15,58.62403584]
[1646230527668,27.48931513,101.25,101.15,58.62403584]
[1646230527868,14.8267,101.24,101.15,58.62403584]
[1646230528268,26.3667,101.24,101.15,58.62403584]
[1646230528667,11.54,101.27,101.15,58.62403584]
[1646230528868,11.54,101.27,101.15,58.87403584]
[1646230529273,14.8241,101.26,101.16,3.952]
[1646230529471,48.5981,101.28,101.16,10.774]
[1646230529672,48.5981,101.28,101.17,49.58882386]
[1646230529871,2.03412299,101.27,101.17,49.83882386]
[1646230530073,2.03412299,101.27,101.19,49.65923365]
[1646230530276,48.5981,101.28,101.19,49.90923365]
[1646230531079,14.8231,101.26,101.19,49.90923365]
[1646230531276,25.87638797,101.26,101.19,49.90923365]
[1646230531674,14.8231,101.26,101.19,49.90923365]
[1646230532576,24.8736221,101.26,101.19,49.90923365]
[1646230533678,136.12927342,101.26,101.19,49.65923365]
[1646230533878,38.06927342,101.26,101.19,49.65923365]
[1646230537283,28.01875132,101.26,101.19,49.65923365]
[1646230537484,14.8231,101.26,101.19,49.90923365]
[1646230537686,49.4113,101.29,101.19,57.94023365]
[1646230537886,37.49963311,101.3,101.19,57.69023365]
[1646230538083,2.22538108,101.28,101.19,57.69023365]
[1646230538283,11.02148986,101.27,101.19,49.65923365]
[1646230538484,158.50478986,101.27,101.19,49.65923365]
[1646230538687,172.27017094,101.27,101.19,49.65923365]
[1646230538884,99.61086044,101.25,101.15,3.951]
[1646230539085,0.27043839,101.24,101.15,3.951]
[1646230539284,113.37624152,101.25,101.15,3.951]
[1646230539887,111.82538108,101.25,101.15,3.951]
[1646230540085,14.8308,101.22,101.16,43.41916592]
[1646230540988,2.22538108,101.25,101.16,43.41916592]
[1646230541184,46.9357,101.26,101.16,58.24446592]
[1646230541589,46.9357,101.26,101.16,58.49446592]
[1646230543091,61.7605,101.26,101.16,58.49446592]
[1646230544514,3.12085537,101.25,101.16,58.49446592]
[1646230544715,14.8257,101.25,101.16,58.49446592]
[1646230547717,16.13946715,101.25,101.16,43.66916592]
[1646230549118,0.25121611,101.24,101.16,43.66916592]
[1646230549517,14.8273,101.24,101.16,43.66916592]
[1646230555123,9.75786486,101.23,101.16,43.66916592]
[1646230555326,24.58566486,101.23,101.16,43.66916592]
[1646230555930,24.58566486,101.23,101.16,43.41916592]
[1646230556125,153.20995668,101.23,101.16,43.41916592]
[1646230556328,24.63227946,101.22,101.14,23.689]
[1646230556525,14.8334,101.2,101.13,3.952]
[1646230557026,45.39769182,101.2,101.13,3.952]
[1646230557225,1.31376715,101.19,101.13,3.952]
[1646230557427,8.96376715,101.19,101.13,3.952]
[1646230557628,39.52805897,101.19,101.13,3.952]
[1646230557827,14.8375,101.18,101.13,3.952]
[1646230558830,9.75786486,101.17,101.13,3.952]
[1646230559028,14.8392,101.16,101.13,3.952]
[1646230559427,14.8392,101.16,101.12,53.2658438]
[1646230560228,14.8356,101.18,101.12,53.2658438]
[1646230561131,14.8356,101.18,101.12,53.5158438]
[1646230561329,37.3402,101.19,101.12,53.5158438]
[1646230561729,14.8332,101.19,101.12,53.5158438]
[1646230561929,17.45229972,101.19,101.12,53.5158438]
[1646230564933,17.45229972,101.19,101.1,3.954]
[1646230564934,115.51229972,101.19,101.1,3.954]
[1646230565133,0.27522562,101.18,101.1,3.954]
[1646230565334,98.06,101.16,101.1,3.954]
[1646230565534,0.37634514,101.15,101.04,52.7222]
[1646230565736,135.09970046,101.15,101.04,52.7222]
[1646230565935,8.36594225,101.14,101.05,52.37751727]
[1646230566137,19.90594225,101.14,101.05,52.37751727]
[1646230566535,117.96594225,101.14,101.05,52.37751727]
[1646230566835,2.70568976,101.12,101.05,52.37751727]
[1646230568037,150.25698976,101.12,101.02,3.956]
[1646230568238,198.9797384,101.12,101.02,3.956]
[1646230568438,198.9797384,101.12,101.0,50.9878]
[1646230568643,0.32636918,101.11,101.0,50.9878]
[1646230568841,124.4525,101.1,101.0,50.9878]
[1646230569039,8.36594225,101.09,101.01,52.97013405]
[1646230569242,65.37414225,101.09,101.01,52.97013405]
[1646230570162,65.37414225,101.09,101.01,53.22013405]
[1646230570363,65.37414225,101.09,101.01,52.97013405]
[1646230570364,163.43414225,101.09,101.01,52.97013405]
[1646230570564,177.19944271,101.09,101.01,52.97013405]
[1646230570866,204.91689089,101.09,101.0,47.0318]
[1646230571265,227.32375007,101.09,100.98,3.958]
[1646230571463,98.06,101.07,100.98,3.958]
[1646230571663,109.6,101.06,100.98,3.958]
[1646230571862,2.70568976,101.05,100.98,3.958]
[1646230572062,11.54,101.04,100.98,3.958]
[1646230572463,11.54,101.06,100.98,3.958]
[1646230572663,26.3954,101.06,100.98,4.208]
[1646230573265,26.3954,101.06,100.99,56.86339213]
[1646230574263,26.3905,101.08,100.99,56.86339213]
[1646230574462,23.9745,101.13,100.99,225.30930736]
[1646230574662,23.9745,101.13,101.0,56.18124003]
[1646230574863,35.5145,101.13,101.01,51.55159966]
[1646230575063,1.12055633,101.12,101.02,14.8446]
[1646230575264,1.12055633,101.12,101.02,24.61264003]
[1646230575466,23.9745,101.13,101.03,47.8393939]
[1646230575668,73.461,101.13,101.03,50.63843393]
[1646230575867,73.461,101.13,101.04,2.54904003]
[1646230576063,111.19315964,101.13,101.03,47.8393939]
[1646230576263,138.25714115,101.13,101.03,47.8393939]
[1646230576465,9.04123197,101.12,101.03,47.8393939]
[1646230576665,35.42963197,101.12,101.03,48.0893939]
[1646230577666,26.3884,101.12,101.03,48.0893939]
[1646230577965,14.8484,101.12,101.03,48.0893939]
[1646230578273,37.9238,101.14,101.04,2.54904003]
[1646230578464,37.9238,101.14,101.04,9.10904003]
[1646230578666,37.9238,101.14,101.05,59.150623]
[1646230578865,14.8422,101.14,101.05,59.400623]
[1646230579273,17.59814305,101.14,101.05,59.400623]
[1646230580266,2.22530046,101.13,101.05,59.150623]
[1646230580467,8.31568896,101.12,101.05,59.150623]
[1646230580667,19.85568896,101.12,101.05,59.150623]
[1646230580867,34.70298896,101.12,101.05,59.150623]
[1646230581470,26.3873,101.12,101.05,59.150623]
[1646230581669,26.3873,101.12,101.05,59.400623]
[1646230582669,14.8473,101.12,101.05,59.400623]
[1646230583571,1.49496913,101.11,101.05,59.400623]
[1646230583772,16.34126913,101.11,101.05,59.400623]
[1646230584072,14.8463,101.11,101.05,59.400623]
[1646230585474,61.031,101.13,101.05,59.400623]
[1646230585475,14.8437,101.13,101.05,59.400623]
[1646230585675,23.9661,101.16,101.05,129.81966303]
[1646230585877,45.61433558,101.19,101.06,6.0]
[1646230586075,23.7382,101.19,101.07,23.824]
[1646230586275,23.7382,101.19,101.08,58.47545557]
[1646230586480,14.8377,101.17,101.09,14.8356]
[1646230586777,123.72529733,101.19,101.09,0.25]
[1646230586976,160.43994551,101.19,101.09,0.25]
[1646230587180,25.25709733,101.16,101.09,0.25]
[1646230587578,35.1714117,101.16,101.08,58.72545557]
[1646230588880,138.15859733,101.15,101.05,23.5427]
[1646230589077,98.06,101.13,101.05,23.5427]
[1646230589277,109.6,101.12,101.03,24.2935]
[1646230589478,11.54,101.12,101.03,24.2935]
[1646230589681,36.79709733,101.12,101.03,24.2935]
[1646230589879,86.29179733,101.12,101.04,45.01390851]
[1646230590682,61.0347,101.12,101.04,45.01390851]
[1646230591080,12.13961483,101.11,101.04,45.01390851]
[1646230591279,14.8489,101.1,101.04,45.01390851]
[1646230591482,61.0347,101.12,101.04,45.01390851]
[1646230592581,14.8473,101.13,101.04,45.01390851]
[1646230592782,25.25709733,101.16,101.04,45.01390851]
[1646230592982,36.79709733,101.16,101.04,68.07330851]
[1646230593183,36.79709733,101.16,101.04,68.32330851]
[1646230593382,11.54,101.16,101.06,57.71411897]
[1646230593582,74.72009733,101.18,101.08,50.11183667]
[1646230593783,74.72009733,101.18,101.08,50.36183667]
[1646230593985,86.26009733,101.18,101.08,50.36183667]
[1646230594288,22.5565,101.19,101.08,50.36183667]
[1646230594688,37.3915,101.19,101.1,14.8341]
[1646230594886,37.3915,101.19,101.1,22.6931]
[1646230595087,22.9809,101.21,101.11,53.47610815]
[1646230595286,38.78781446,101.23,101.11,53.72610815]
[1646230595486,11.54,101.23,101.11,53.72610815]
[1646230595710,22.725,101.24,101.12,6.0]
[1646230595889,14.8295,101.23,101.12,44.02]
[1646230596090,25.89020958,101.23,101.13,48.15121392]
[1646230596289,25.89020958,101.23,101.13,54.97621392]
[1646230596489,14.8295,101.23,101.13,54.97621392]
[1646230596689,2.22530046,101.24,101.13,54.97621392]
[1646230596891,34.42530046,101.26,101.14,163.2]
[1646230597089,14.8234,101.27,101.14,163.45]
[1646230597393,14.8234,101.27,101.15,2.54904003]
[1646230597590,14.8234,101.27,101.16,67.60118303]
[1646230597788,109.5966,101.3,101.16,67.60118303]
[1646230597789,48.6487,101.3,101.16,146.65218303]
[1646230597989,14.8203,101.28,101.17,17.37114003]
[1646230598189,14.8203,101.28,101.18,50.68636976]
[1646230598390,14.8203,101.28,101.18,53.48540979]
[1646230598589,14.8203,101.28,101.19,2.54904003]
[1646230598790,14.8203,101.28,101.2,6.0]
[1646230598993,14.8203,101.28,101.2,6.25]
[1646230599390,14.8203,101.28,101.21,46.1709485]
[1646230599590,14.8244,101.26,101.21,46.1709485]
[1646230601491,14.8212,101.28,101.21,46.4209485]
[1646230601690,14.8212,101.28,101.21,54.6979485]
[1646230601892,48.6487,101.3,101.21,54.6979485]
[1646230602095,72.839,101.32,101.21,69.5159485]
[1646230603092,14.8183,101.3,101.21,69.5159485]
[1646230603492,72.839,101.32,101.21,69.5159485]
[1646230603693,49.3942,101.32,101.22,6.0]
[1646230603893,49.3942,101.32,101.22,21.0659]
[1646230604294,49.3942,101.32,101.23,53.5592817]
[1646230604506,49.3942,101.32,101.23,53.8092817]
[1646230605097,14.8159,101.31,101.23,53.8092817]
[1646230605494,21.47725815,101.34,101.23,68.6242817]
[1646230605695,2.22530046,101.34,101.23,68.6242817]
[1646230605895,24.2274,101.37,101.24,6.0]
[1646230606096,39.0363,101.37,101.24,12.721]
[1646230606395,39.0363,101.37,101.26,53.23673647]
[1646230606594,39.0363,101.37,101.27,14.8082]
[1646230606794,39.0363,101.37,101.28,59.49039939]
[1646230606997,39.0363,101.37,101.28,59.74039939]
[1646230607597,14.8097,101.36,101.28,59.74039939]
[1646230607797,107.151,101.39,101.28,59.74039939]
[1646230607999,46.2481,101.39,101.28,59.74039939]
[1646230608396,11.54,101.41,101.28,63.68739939]
[1646230608596,14.8042,101.4,101.3,59.17448787]
[1646230608796,14.8042,101.4,101.3,66.09548787]
[1646230609196,13.8042,101.4,101.32,49.47612154]
[1646230609499,2.22530046,101.42,101.32,49.72612154]
[1646230610201,10.36147924,101.42,101.32,49.72612154]
[1646230611198,21.90147924,101.42,101.32,49.72612154]
[1646230611401,21.90147924,101.42,101.32,49.47612154]
[1646230611600,44.30975372,101.42,101.32,49.47612154]
[1646230611801,0.97066667,101.41,101.32,49.47612154]
[1646230612009,11.54,101.4,101.32,49.47612154]
[1646230612201,13.76535727,101.4,101.32,49.47612154]
[1646230612600,14.8078,101.38,101.32,49.47612154]
[1646230613001,51.58115727,101.41,101.32,49.47612154]
[1646230613201,51.58115727,101.41,101.32,58.57712154]
[1646230613202,2.22535727,101.41,101.32,58.57712154]
[1646230614002,17.02855727,101.41,101.32,58.57712154]
[1646230615204,17.02855727,101.41,101.32,53.67212154]
[1646230617807,14.8047,101.4,101.32,53.67212154]
[1646230619610,2.22535727,101.41,101.32,53.67212154]
[1646230619811,0.25919593,101.38,101.32,53.67212154]
[1646230620007,0.41339481,101.4,101.32,3.946]
[1646230620208,20.414,101.4,101.32,3.946]
[1646230620408,0.41339481,101.39,101.32,3.946]
[1646230620611,11.54,101.39,101.32,3.946]
[1646230621009,14.8087,101.37,101.32,3.946]
[1646230621209,11.54,101.37,101.32,3.946]
[1646230621611,0.4499419,101.36,101.24,29.9279]
[1646230621812,13.60914799,101.36,101.19,77.4289]
[1646230622109,14.8184,101.3,101.2,24.5148]
[1646230622510,16.90928791,101.3,101.21,53.00185782]
[1646230622711,14.8184,101.3,101.21,53.00185782]
[1646230623214,60.9311,101.33,101.21,53.00185782]
[1646230623215,14.816,101.32,101.21,53.00185782]
[1646230623410,49.3911,101.33,101.21,53.00185782]
[1646230623819,9.1977082,101.32,101.21,53.00185782]
[1646230624212,9.1977082,101.32,101.21,53.25185782]
[1646230624814,9.1977082,101.32,101.21,68.09995782]
[1646230625014,14.8182,101.3,101.21,82.91665782]
[1646230625615,14.8182,101.3,101.21,82.66665782]
[1646230627437,14.8192,101.29,101.21,53.00185782]
[1646230627636,1.87392381,101.28,101.21,53.00185782]
[1646230627837,2.13748106,101.28,101.21,53.00185782]
[1646230628039,2.13748106,101.28,101.18,23.6941]
[1646230628238,111.73748106,101.28,101.18,23.6941]
[1646230628541,28.23482381,101.28,101.18,23.6941]
[1646230628938,26.3609,101.28,101.19,52.81153266]
[1646230629138,14.8209,101.28,101.19,52.81153266]
[1646230629539,14.8209,101.28,101.19,53.06153266]
[1646230630141,24.3016444,101.28,101.19,53.06153266]
[1646230630441,14.8209,101.28,101.19,53.06153266]
[1646230632440,14.8209,101.28,101.19,67.88163266]
[1646230632641,14.8182,101.3,101.19,67.88163266]
[1646230632840,14.8182,101.3,101.2,6.0]
[1646230633041,14.8182,101.3,101.2,6.25]
[1646230633647,14.8182,101.3,101.2,21.0682]
[1646230633844,14.8182,101.3,101.2,15.0682]
[1646230634449,85.8784,101.32,101.2,180.6052]
[1646230634650,85.8784,101.32,101.21,6.0]
[1646230634850,85.8784,101.32,101.23,14.8141]
[1646230635049,85.8784,101.32,101.24,51.14294441]
[1646230635254,85.8784,101.32,101.24,51.39294441]
[1646230635653,0.90964703,101.3,101.24,51.14294441]
[1646230635852,109.6,101.34,101.24,51.14294441]
[1646230635853,109.6,101.33,101.24,51.14294441]
[1646230636054,49.396,101.32,101.24,51.14294441]
[1646230636861,9.76793195,101.31,101.24,51.14294441]
[1646230637053,14.8188,101.29,101.24,51.39294441]
[1646230639154,14.8203,101.28,101.18,139.0662]
[1646230639355,14.8203,101.28,101.18,124.2454]
[1646230639555,112.8803,101.28,101.18,46.5877]
[1646230639755,0.27360034,101.27,101.16,23.7365]
[1646230640155,1.30370006,101.27,101.17,54.12209601]
[1646230641057,14.826,101.24,101.17,54.12209601]
[1646230641264,8.47197019,101.23,101.17,54.12209601]
[1646230641857,11.54,101.26,101.17,54.12209601]
[1646230642259,11.54,101.29,101.17,54.12209601]
[1646230642460,47.06,101.3,101.17,54.37209601]
[1646230642858,56.38663467,101.3,101.17,54.37209601]
[1646230643057,56.38663467,101.3,101.17,77.96199601]
[1646230643257,56.38663467,101.3,101.17,176.02199601]
[1646230643461,47.06,101.3,101.17,176.02199601]
[1646230643659,47.06,101.3,101.18,6.0]
[1646230643861,14.8212,101.28,101.19,14.82]
[1646230644059,14.8212,101.28,101.19,15.07]
[1646230644481,47.06,101.3,101.19,15.07]
[1646230644659,47.06,101.3,101.2,6.0]
[1646230644860,61.8783,101.3,101.21,64.89051025]
[1646230645059,61.8783,101.3,101.21,65.14051025]
[1646230645459,14.8183,101.3,101.21,65.14051025]
[1646230646860,14.8153,101.32,101.21,65.14051025]
[1646230647059,14.8153,101.32,101.21,124.28051025]
[1646230647259,14.8153,101.32,101.22,6.0]
[1646230647460,14.8153,101.32,101.22,21.0648]
[1646230647661,14.8153,101.32,101.22,25.0138]
[1646230649866,14.8158,101.31,101.22,25.0138]
[1646230650068,0.35918958,101.3,101.22,10.199]
[1646230650270,27.15725642,101.31,101.22,4.199]
[1646230650468,0.43052353,101.3,101.22,4.199]
[1646230650869,0.43052353,101.3,101.21,50.07361025]
[1646230651070,14.8204,101.28,101.21,50.07361025]
[1646230651270,0.63444124,101.27,101.21,50.07361025]
[1646230652187,14.8209,101.28,101.21,50.32361025]
[1646230653388,14.8181,101.3,101.21,50.32361025]
[1646230653789,49.3981,101.31,101.21,50.32361025]
[1646230654291,58.53121649,101.31,101.21,50.32361025]
[1646230654488,49.3981,101.31,101.21,50.32361025]
[1646230655089,14.8188,101.29,101.21,50.32361025]
[1646230657401,14.82,101.28,101.21,50.32361025]
[1646230657998,14.82,101.28,101.21,50.07361025]
[1646230659399,14.82,101.28,101.21,50.32361025]
[1646230660910,0.252475,101.27,101.18,3.95]
[1646230661106,14.826,101.25,101.18,3.95]
[1646230661305,14.826,101.25,101.14,59.14]
[1646230661506,14.826,101.25,101.15,6.0]
[1646230661706,14.826,101.25,101.15,69.092]
[1646230661908,14.826,101.25,101.16,52.58560898]
[1646230662105,14.826,101.25,101.17,14.823]
[1646230662509,14.826,101.25,101.17,15.073]
[1646230663107,14.826,101.25,101.17,0.25]
[1646230663306,14.826,101.25,101.16,52.83560898]
[1646230665107,14.826,101.25,101.16,71.61210898]
[1646230666110,14.826,101.25,101.16,67.66010898]
[1646230666710,14.826,101.25,101.16,82.57930898]